Cogmind - Beta 14 @@@ ROGUE MODE // 2024.11.08 @ 13:25:36 Player: Miles Result: Core destroyed Performance ------------- Evolutions (2) 1000 Regions Visited (3) 600 Robots Destroyed (31) 155 Value Destroyed (723) 723 Prototype IDs (2) 40 Alien Tech Used (0) 0 Bonus (0) 0 TOTAL SCORE: 2518 Bonus ------- None Cogmind --------- Core Integrity 0/550 Matter 128/300 Energy 28/100 System Corruption 0% Temperature Critical (622) Movement Core (300) Ox5 Location -8/Materials Parts ------- > --- POWER (1) -------- (None) > --- PROPULSION (3) --- (None) > --- UTILITY (5) ------ Medium Storage Unit Advanced Targeting Computer Advanced Targeting Computer Improved Propulsion Shielding > --- WEAPON (2) ------- Improved Medium Laser Improved Medium Laser > --- INVENTORY (10) --- Nuclear Core Medium Storage Unit Improved Propulsion Shielding Katana Scythe Peak State ------------ > --- POWER ------------ Nuclear Core > --- PROPULSION ------- Aluminum Leg Aluminum Leg VSS Leg > --- UTILITY ---------- Medium Storage Unit Signal Interpreter Transport Network Coupler Advanced Targeting Computer Improved Propulsion Shielding > --- WEAPON ----------- Heavy EM Shotgun Heavy EM Shotgun > --- INVENTORY -------- Nuclear Core Nuclear Core Medium Storage Unit Advanced Targeting Computer Improved Propulsion Shielding Improved Propulsion Shielding Improved Medium Laser Improved Medium Laser EM Pulse Cannon Flail [Rating: 27] Favorites ----------- Power Nuclear Core Engine Ion Engine Power Core Nuclear Core Propulsion Aluminum Leg Treads Light Treads Leg Aluminum Leg Utility Medium Storage Unit Device Improved Terrain Scanner Storage Medium Storage Unit Processor Transport Network Coupler Protection Improved Propulsion Shielding Weapon Heavy EM Shotgun Energy Gun Heavy EM Shotgun Energy Cannon EM Pulse Cannon Ballistic Gun Light Assault Rifle Slashing Weapon Katana Build | -11 -10 -9 -8 ------- Run | Yrd Mat Mat Mat Slots Evolved 4 | . . 2 2 Power . | . . . . Propulsion 1 | . . . 1 Utility 3 | . . 2 1 Weapon . | . . . . Parts Attached 46 | 9 4 12 21 Power 4 | 1 . 1 2 Engine 2 | 1 . . 1 Core 2 | . . 1 1 Reactor . | . . . . Propulsion 8 | 3 2 1 2 Treads 1 | 1 . . . Leg 7 | 2 2 1 2 Wheel . | . . . . Hover . | . . . . Flight . | . . . . Utility 13 | 2 2 4 5 Device 3 | 1 1 1 . Storage 2 | 1 1 . . Processor 5 | . . 3 2 Hackware . | . . . . Protection 3 | . . . 3 Artifact . | . . . . Weapon 21 | 3 . 6 12 Energy Gun 16 | 2 . 4 10 Energy Cannon 1 | . . 1 . Ballistic Gun 2 | 1 . 1 . Ballistic Cannon . | . . . . Launcher . | . . . . Special Weapon . | . . . . Impact Weapon . | . . . . Slashing Weapon 2 | . . . 2 Piercing Weapon . | . . . . Special Melee Weapon . | . . . . Unidentified Prototypes 2 | . . 1 1 Parts Lost 10 | . . . 10 Power 2 | . . . 2 Propulsion 3 | . . . 3 Utility 3 | . . . 3 Weapon 2 | . . . 2 Highest Loss Streak 10 | . . . 10 To Critical Strikes . | . . . . Average Slot Usage (%) 99 | . 100 99 98 Engine 5 | . 14 . 4 Core 5 | . . 10 4 Leg 25 | . 28 22 26 Device 6 | . 14 9 . Storage 11 | . 14 11 9 Processor 18 | . . 23 26 Protection 3 | . . . 8 Energy Gun 16 | . 14 18 16 Ballistic Gun 4 | . 14 2 . Peak Build Rating 27 | 8 10 22 27 Average Rating 17 | 6 9 19 25 On Entrance 9 | . 7 10 20 Naked Turns . | . . . . Heaviest Build 28 | 13 18 27 28 Greatest Support 32 | 20 20 26 32 Greatest Overweight (x) 5 | . . 1 5 Average Overweight (x) . | . . . . Largest Inventory Capacity 10 | 8 10 10 10 Average Capacity 9 | 7 9 10 10 Most Carried 10 | 8 10 10 10 Average Carried 9 | 5 9 9 9 Final Capacity 10 | 8 10 10 10 Final Carried 10 | 7 10 10 5 Class Distribution -------------------- 62% | Scavenger-Mutant 37% | Mutant Dominant Class ---------------- Mutant | -10/Materials Scavenger-Mutant | -9/Materials Scavenger-Mutant | -8/Materials Resources | -11 -10 -9 -8 ----------- Run | Yrd Mat Mat Mat Matter Collected 719 | 301 107 178 133 Remotely 84 | 84 . . . Salvage Created 1179 | 130 88 506 455 Parts 81 | 6 11 41 23 Haulers Intercepted 3 | . 1 2 . Recyclers Shooed . | . . . . Parts Field Recycled . | . . . . Retrieved Matter . | . . . . Parts Self-Destructed . | . . . . Prevented . | . . . . Kills | -11 -10 -9 -8 ------- Run | Yrd Mat Mat Mat Combat Hostiles Destroyed 19 | . 3 9 7 Melee 1 | . . . 1 Guns 17 | . 3 8 6 Classes Destroyed 12 | 2 2 5 3 Worker 1 | . . . 1 Builder 1 | . . . 1 Tunneler 2 | 2 . . . Hauler 3 | . 1 2 . Recycler 1 | 1 . . . Operator 1 | . . 1 . Watcher 3 | . . 2 1 Swarmer 6 | . 3 3 . Grunt 7 | . . 4 3 Brawler 1 | . . 1 . Sentry 4 | . . 1 3 Hunter 1 | . . . 1 Best Kill Streak 4 | 1 1 4 3 Combat Bots Only 4 | . 1 4 2 Max Kills in Single Turn 2 | 1 1 2 2 Gunslinging . | . . . . Exploded . | . . . . Melee 1 | . . . 1 Uniques/NPCs Destroyed . | . . . . Combat | -11 -10 -9 -8 -------- Run | Yrd Mat Mat Mat Hostile Shots Fired 174 | . 28 31 115 Missed 52 | . 10 10 32 Damage Taken 2074 | . 282 308 1484 Core 684 | . 41 33 610 Absorbed by Shields . | . . . . Redirected to Shielding 127 | . . . 127 Core Remaining (%) 91 | 100 83 91 . Volleys Fired 74 | 11 23 23 17 Largest 2 | 2 2 2 2 Hottest 113 | 60 60 113 112 Shots Fired 145 | 22 46 46 31 Gun 142 | 22 46 43 31 Cannon 3 | . . 3 . Launcher . | . . . . Special . | . . . . Kinetic 36 | 11 23 2 . Thermal 51 | 10 23 . 18 Explosive . | . . . . Electromagnetic 58 | 1 . 44 13 Robot Hit Streak 14 | 6 6 14 11 Robot Miss Streak 7 | 1 7 3 2 Penetration Max . | . . . . Secondary Targets 2 | . 1 . 1 Max Gunslinging Chain 1 | . 1 . 1 Shots Hit Robots 108 | 15 21 37 35 Core Hits 48 | 5 8 17 18 Critical Kills . | . . . . Critical Parts Destroyed . | . . . . Critical Strikes 4 | . . . 4 Burn 2 | . . . 2 Sever 2 | . . . 2 Melee Attacks 13 | . . . 13 Impact . | . . . . Slashing 13 | . . . 13 Piercing . | . . . . Sneak Attacks 2 | . . . 2 Combat Hostiles . | . . . . Follow-up Attacks . | . . . . Damage Inflicted 2030 | 148 222 772 888 Guns 1558 | 148 222 685 503 Cannons 43 | . . 43 . Explosions 44 | . . 44 . Melee 385 | . . . 385 Ramming . | . . . . Kinetic 132 | 49 83 . . Thermal 518 | 87 139 44 248 Explosive . | . . . . Electromagnetic 995 | 12 . 728 255 Impact . | . . . . Slashing 385 | . . . 385 Piercing . | . . . . Highest Corruption . | . . . . Average Corruption . | . . . . Corruption Purged . | . . . . Corruption Blocked . | . . . . Overload Shots . | . . . . Overflow Damage 22 | . . . 22 Projectiles . | . . . . Explosions . | . . . . Melee 22 | . . . 22 Knockbacks . | . . . . Impact . | . . . . Kinetic . | . . . . Secondary . | . . . . Self-Inflicted Damage 79 | . . 79 . Shots 2 | . . 2 . Rammed . | . . . . Targets Rammed . | . . . . Kicked . | . . . . Crushed . | . . . . Highest Temperature 626 | 40 67 150 626 Average Temperature 90 | 21 23 58 241 Received Heat Transfer 834 | . 36 69 729 Effects 12 | . . . 12 Shutdowns 1 | . . . 1 Energy Bleed 2 | . . . 2 Interference 2 | . . . 2 Matter Decay 3 | . . . 3 Short Circuit 2 | . . . 2 Damage (core) 2 | . . . 2 Siege Activations . | . . . . Robots Corrupted 1 | . . 1 . Combat Hostiles 1 | . . 1 . Parts Fried 12 | . . 7 5 Impact Corruptions . | . . . . Robots Melted . | . . . . Combat Hostiles . | . . . . Parts Melted 1 | . . . 1 Heat Transferred 1228 | 200 325 . 703 Parts Sabotaged . | . . . . Parts Stolen . | . . . . Parts Stripped . | . . . . Power Chain Reactions 2 | . . 2 . Alert | -11 -10 -9 -8 ------- Run | Yrd Mat Mat Mat Peak Influence 338 | 15 161 338 264 Initial 57 | . 9 . 57 Average 100 | 8 84 131 119 Maximum Alert Level 1 | . . 1 1 Low Security (%) 91 | 100 100 89 84 Level 1 8 | . . 10 15 Level 2 . | . . . . Level 3 . | . . . . Level 4 . | . . . . Level 5 . | . . . . High Security . | . . . . Max Security . | . . . . Squads Dispatched 6 | . 1 2 3 Investigation 2 | . . 1 1 Extermination . | . . . . Reinforcement 3 | . 1 1 1 Assault . | . . . . Garrison 1 | . . . 1 Intercept . | . . . . Searches Triggered . | . . . . Construction Impeded . | . . . . Haulers Reinforced . | . . . . Active Scanning Responses . | . . . . Cargo Convoy Interrupts . | . . . . Stealth | -11 -10 -9 -8 --------- Run | Yrd Mat Mat Mat Distress Signals 4 | . 2 . 2 Communications Jammed . | . . . . Distress Signals . | . . . . Times Spotted 43 | . 13 12 18 Peak Tracking Total 8 | . 5 4 8 Tactical Retreats 1 | . . . 1 Traps | -11 -10 -9 -8 ------- Run | Yrd Mat Mat Mat Traps Triggered 2 | . . 1 1 Indirectly . | . . . . Trap Hack Attempts . | . . . . Triggered . | . . . . Disarmed . | . . . . Reprogrammed . | . . . . Reused . | . . . . Traps Extracted . | . . . . Installed . | . . . . Triggered . | . . . . Machines | -11 -10 -9 -8 ---------- Run | Yrd Mat Mat Mat Machines Disabled 1 | . . 1 . Max in Single Turn 1 | . . 1 . Machines Repaired . | . . . . Machines Dismantled . | . . . . Machines Sabotaged . | . . . . Overloaded Fab Kills . | . . . . Hacking | -11 -10 -9 -8 --------- Run | Yrd Mat Mat Mat Machines Accessed 3 | . 1 1 1 Terminals 1 | . . 1 . Fabricators . | . . . . Repair Stations 2 | . 1 . 1 Recycling Units . | . . . . Scanalyzers . | . . . . Garrison Access . | . . . . Total Hacks 5 | . 1 1 3 Successful 3 | . 1 1 1 Failed 2 | . . . 2 Catastrophic . | . . . . Database Lockouts . | . . . . Manual . | . . . . Terminals 1 | . . 1 . Fabricators . | . . . . Repair Stations 4 | . 1 . 3 Recycling Units . | . . . . Scanalyzers . | . . . . Garrison Access . | . . . . Terminal Hacks 1 | . . 1 . Record 1 | . . 1 . Fabricator Hacks . | . . . . Repair Station Hacks 2 | . 1 . 1 Scan Component 2 | . 1 . 1 Recycling Unit Hacks . | . . . . Scanalyzer . | . . . . Garrison Access Hacks . | . . . . Unauthorized Hacks . | . . . . Terminals . | . . . . Fabricators . | . . . . Repair Stations . | . . . . Recycling Units . | . . . . Scanalyzers . | . . . . Garrison Access . | . . . . Data Cores Recovered 1 | . . 1 . Used . | . . . . Hacking Detections . | . . . . Full Trace Events . | . . . . Feedback Events . | . . . . Feedback Blocked . | . . . . Robot Schematics Acquired . | . . . . Robots Built . | . . . . Authchips . | . . . . Time . | . . . . Total Robot Build Rating . | . . . . Part Schematics Acquired . | . . . . Parts Built . | . . . . Authchips . | . . . . Time . | . . . . Total Part Build Rating . | . . . . Parts Repaired . | . . . . Time . | . . . . Parts Recycled . | . . . . Recycled Matter . | . . . . Retrieved Matter . | . . . . Retrieved Components . | . . . . Parts Scanalyzed . | . . . . Part Schematics Acquired . | . . . . Parts Damaged . | . . . . Bothacking | -11 -10 -9 -8 ------------ Run | Yrd Mat Mat Mat Used RIF Installer . | . . . . Robots Hacked . | . . . . Non-combat . | . . . . Combat . | . . . . Robot Hacks Applied . | . . . . Relay Couplers Released . | . . . . Fabnet Peak Effective % . | . . . . Robots Rewired . | . . . . Allies Hacked . | . . . . Hacks Repelled . | . . . . Allies | -11 -10 -9 -8 -------- Run | Yrd Mat Mat Mat Total Allies . | . . . . Largest Group . | . . . . Highest-Rated Group . | . . . . Highest-Rated Ally . | . . . . Total Orders . | . . . . Ally Attacks . | . . . . Total Damage . | . . . . Kills . | . . . . Allies Corrupted . | . . . . Allies Melted . | . . . . Intel | -11 -10 -9 -8 ------- Run | Yrd Mat Mat Mat Robot Analysis Total . | . . . . Derelict Logs Recovered . | . . . . Drone Launches . | . . . . Drone Recoveries . | . . . . Exploration | -11 -10 -9 -8 ------------- Run | Yrd Mat Mat Mat Turns Passed 1608 | 192 413 452 551 Spaces Moved 973 | 119 258 231 365 Core 11 | 10 . . 1 Treads . | . . . . Legs 962 | 109 258 231 364 Wheels . | . . . . Hover . | . . . . Flight . | . . . . Fastest Speed 50 | 50 120 120 110 Average Speed 122 | 114 120 150 110 Slowest Speed 300 | 120 120 190 300 Overloaded Moves . | . . . . Propulsion Burnouts . | . . . . Robots Hopped . | . . . . Cave-ins Triggered . | . . . . Exploration Rate (%) 24 | 6 46 19 26 Regions Visited 3 Branch Regions . Pre-discovered Areas . | . . . . Known Exits Taken 1 | . . 1 . Unknown Exits Taken 2 | 1 1 . . Scrap Searched . | . . . . Spaces Dug . | . . . . Terrain Destroyed 9 | . . 9 . Melee . | . . . . Projectile . | . . . . AOE 9 | . . 9 . Terrain Rammed . | . . . . Walls Destroyed . | . . . . Machines Disabled . | . . . . Actions | -11 -10 -9 -8 --------- Run | Yrd Mat Mat Mat Total 1236 | 154 323 295 464 Wait 51 | 1 20 5 25 Move 970 | 118 257 230 365 Hop . | . . . . Pick Up 47 | 14 10 12 11 Fast Attach 4 | 1 . 1 2 Attach 17 | 6 . 3 8 Detach . | . . . . Swap 25 | 2 4 8 11 Drop 35 | 1 9 13 12 Fire 74 | 11 23 23 17 Melee 13 | . . . 13 Ram . | . . . . Kick . | . . . . Crush . | . . . . Escape Stasis . | . . . . Rewire . | . . . . Trap . | . . . . Miscellaneous . | . . . . Route ------- -11/Scrapyard -10/Materials (discovered 2 exits: *Mat / [*Min]) -9/Materials -8/Materials History --------- Turn | Location | Event 11 | -11/Scrapyard | Discovered new exit (range 16) 193 | -11/Scrapyard | Entered Materials 306 | -10/Materials | Build established: Mutant 441 | -10/Materials | Discovered new exit (range 14) 587 | -10/Materials | Discovered new exit (range 3) 606 | -10/Materials | Entered another Materials area 606 | -9/Materials | Evolved 2 slots: Utility x2 892 | -9/Materials | Build established: Scavenger-Mutant 991 | -9/Materials | Discovered new exit (range 4) 1003 | -9/Materials | Identified exit to Materials 1058 | -9/Materials | Entered another Materials area 1058 | -8/Materials | Evolved 2 slots: Propulsion x1, Utility x1 1403 | -8/Materials | Garrison activated, responded to threat 1602 | -8/Materials | Core integrity fell below 50% 1606 | -8/Materials | Core integrity fell below 20% 1610 | -8/Materials | Core destroyed Last Messages --------------- 01599_ Overheating: Matter decay (-45). 01600_ Signal Interpreter destroyed. 01601_ K-01 Serf collects debris. 01602_ Overheating: Energy bleed (-19). 01602_ Hvy. EM Shotgun destroyed. 01603_ Transport Network Coupler broken. 01603_ Overheating: Short circuit. 01604_ VSS Leg destroyed. 01605_ Overheating: Core damaged (-99). 01605_ K-01 Serf collects debris. 01605_ Nuclear Core destroyed. 01606_ Overheating: Energy bleed (-7). 01606_ Broken Transport Network Coupler destroyed. 01606_ G-47 Trooper destroyed. 01607_ Overheating: Matter decay (-30). 01608_ Imp. Medium Laser broken. 01608_ Overheating: Short circuit. 01609_ Acquired 13 matter. 01610_ Overheating: Core damaged (-71). Map ----- +----------------------------------------------------+ | ??????????# ## #* /!*= #! #?# == # | | ??????????# = ## # !%! %+= #?# + | | ??????????######### # !% [*# #?# = # = | | ??????????????????# # # #?# * #*% | | ??????????????????# # ### ###?# ### | | ??????????????????# ###########?# #???#+######?# | | ??????????????????# #???????????# ##### #??????# | | ??????????????????# #???????????# #??????# | | ??????????????????# #???????????# ##### #??????# | | ??????????????????# #??????######+####??######## | | ??????????????????# #??????#* ## | | ??????????????????# ??????# ## / | | ??????????????????# ??????# ## | | ??????????????????# ??????# / #" | | ??????????????????# ??????# #T | | ?????????????????? ??????# """ """ #" "" | | ??????????????????# ??????# """ """ ## G" | | ??????????????????## ######### """ """ ## "" | | ???????????????????? ??# #####+###### | | ???????????????????? ??# | | ???????????????????????# #####/###??### | | ???????????????????????# [* %=! #????????????? | | ???????????????????????#=[g* ###+#######?????????? | | ???????????????????????##%gg## *= ! #?????????? | | ????????????????????????#=%[## #?????????? | | ????????????????????????#@*=## #?????????? | | ????????????????????????# ## /!????????? | | ????????????????????????# a## ! ###???????? | | ????????????????????????# ## #?????????? | | ????????????????????????# ## / #?????????? | | ????????????????????????# ## ] #?????????? | | ????????????????????????# ############?????????? | | ????????????????????????# #????????????????????? | | ????????????????????????; #????????????????????? | | ????????????????????????# #????????????????????? | | ????????????????????????# #????????????????????? | | ????????????????????????#ggg#????????????????????? | | ????????????????????????# #????????????????????? | | ????????????????????????# #????????????????????? | | ????????????????????????? #????????????????????? | | ?????????????????????????k +????????????????????? | | ????????????????????????? ?????????????????????? | | ?????????????????????????????????????????????????? | | ?????????????????????????????????????????????????? | | ?????????????????????????????????????????????????? | | ?????????????????????????????????????????????????? | | ?????????????????????????????????????????????????? | | ?????????????????????????????????????????????????? | | ?????????????????????????????????????????????????? | | ?????????????????????????????????????????????????? | +----------------------------------------------------+ Best States ------------- Heat Dissipation 31 Energy Generation 14 Energy Capacity 250 Matter Stores 300 Matter Capacity 300 Sight Range 16 Terrain Scan Range 16 Terrain Scan Density 10 Additional Mass Support 6 Armor Coverage 150 Propulsion Shielding 66 Evasion (%) 55 Targeting Accuracy 16 Item Schematics ----------------- None Robot Schematics ------------------ None Fabricated ------------ Nothing Alien Tech Used ----------------- None Achievements -------------- None Challenges ------------ None Game ------ Seed ThunderDecoderArray Manual? 0 Play Time 00:24:26 Cumulative 15.2 hours Start 2024.11.08 @ 11:33:48 End 2024.11.08 @ 13:25:36 Sessions 3 Manual Loads 0 Difficulty Rogue Special Mode None Game No. 26 Rogue 26 Adventurer 0 Explorer 0 Win Type - Total 0 Types 0/0/0/0/0/0/0/0/0 Lore% 6 Gallery% 19 Achievement% 16 Wizard Run 0 Options --------- Layout 1 ASCII 0 Keyboard 0 Movement Mouse Keybinds 0 Fullscreen 0 Font 20/SmallcapsGlow Map View 50x35 Zoom Use 0% Tactical HUD 1 Map Filters NONE Filters NONE Steam 1 RUN: 1071afb8-ebeb-4fe4-8959-3c17cc639f79